fUST/lending_fUST_20250611
["ID","MTS","AMOUNT","RATE_DAILY","PERIOD"]
[365368437,1749621045037,-1089.15,0.00023287,4]
[365368439,1749621045046,-460.0,0.00023287,4]
[365368440,1749621045055,-2691.41,0.00023287,4]
[365368443,1749621045064,-2961.65,0.00023287,4]
[365368445,1749621045074,-2743.26,0.00023287,4]
[365368446,1749621045083,-516.45,0.00023287,4]
[365368449,1749621045094,-1427.72,0.00023287,4]
[365368451,1749621045103,-899.27,0.00023287,4]
[365368452,1749621045112,-151.27,0.00023287,4]
[365368454,1749621045121,-1241.19,0.00023287,4]
[365368456,1749621045130,-460.0,0.00023287,4]
[365368458,1749621045139,-460.0,0.00023287,4]
[365368460,1749621045148,-1257.03,0.00023287,4]
[365368462,1749621045158,-573.4653004,0.00023315,2]
[365368464,1749621045167,-153.0,0.00023315,2]
[365368466,1749621045176,-1154.5161815,0.00023315,2]
[365368468,1749621045185,-158.7816813,0.00023315,2]
[365368470,1749621045194,-158.7816813,0.00023315,2]
[365368472,1749621045204,-158.7816813,0.00023315,2]
[365368474,1749621045213,-158.7816813,0.00023315,2]
[365368476,1749621045222,-769.33,0.00023328,4]
[365368478,1749621045231,-623.0,0.00023333,2]
[365368480,1749621045240,-501.29927995,0.0002334,2]
[365368482,1749621045249,-5888.0,0.00023382,2]
[365368484,1749621045259,-2179.93183661,0.00023383,9]
[365368486,1749621045268,-164.1810118,0.00023397,2]
[365368488,1749621045277,-42406.97,0.000234,7]
[365368491,1749621045293,-1005.052943,0.000234,2]
[365368494,1749621045307,-160.0,0.000234,7]
[365368496,1749621045317,-5000.0,0.00023407,2]
[365368498,1749621045327,-769.33,0.00023428,3]
[365368500,1749621045337,-2179.93183661,0.00023521,9]
[365368502,1749621045349,-769.33,0.00023528,7]
[365368504,1749621045359,-623.0,0.00023536,2]
[365368506,1749621045369,-237.86102838,0.00023561,4]
[365368508,1749621045379,-504.44,0.00023561,4]
[365368510,1749621045389,-242.13398225,0.00023561,4]
[365368512,1749621045399,-460.0,0.00023561,4]
[365368514,1749621045408,-2794.46,0.00023561,4]
[365368516,1749621045418,-460.0,0.00023561,4]
[365368518,1749621045428,-460.0,0.00023561,4]
[365368520,1749621045438,-1128.57,0.00023561,4]
[365368523,1749621045448,-965.35,0.00023561,4]
[365368525,1749621045459,-584.39,0.00023561,4]
[365368527,1749621045468,-481.02,0.00023561,4]
[365368529,1749621045478,-327.47085574,0.00023561,4]
[365368531,1749621045488,-460.0,0.00023561,4]
[365368533,1749621045498,-2733.38,0.00023561,4]
[365368535,1749621045508,-939.22,0.00023561,4]
[365368537,1749621045517,-790.34,0.00023561,4]
[365368539,1749621045527,-1546.53,0.00023561,4]
[365368541,1749621045536,-1073.56,0.00023561,4]
[365368543,1749621045546,-1955.74,0.00023561,4]
[365368545,1749621045556,-449.4868992,0.00023561,4]
[365368547,1749621045566,-1089.15,0.00023561,4]
[365368549,1749621045576,-460.0,0.00023561,4]
[365368551,1749621045585,-2691.41,0.00023561,4]
[365368553,1749621045596,-2961.65,0.00023561,4]
[365368555,1749621045605,-2743.26,0.00023561,4]
[365368557,1749621045615,-516.45,0.00023561,4]
[365368559,1749621045624,-1427.72,0.00023561,4]
[365368561,1749621045633,-899.27,0.00023561,4]
[365368564,1749621045643,-1241.19,0.00023561,4]
[365368566,1749621045652,-460.0,0.00023561,4]
[365368568,1749621045661,-460.0,0.00023561,4]
[365368570,1749621045670,-1200.0,0.00023623,2]
[365368572,1749621045680,-769.33,0.00023628,7]
[365368574,1749621045689,-2179.93183661,0.00023659,9]
[365368576,1749621045698,-151.0,0.000237,7]
[365368578,1749621045707,-200.0,0.00023714,7]
[365368580,1749621045716,-205.857479,0.00023714,7]
[365368582,1749621045725,-164.1810118,0.00023726,2]
[365368584,1749621045734,-769.33,0.00023728,4]
[365368586,1749621045744,-906.86118505,0.00023742,2]
[365368588,1749621045753,-160.0,0.0002375,5]
[365368589,1749621045763,-162.20665653,0.0002375,5]
[365368590,1749621045772,-298.323544,0.00023761,2]
[365368591,1749621045782,-2179.93183661,0.00023797,9]
[365368592,1749621045790,-769.33,0.00023828,5]
[365368593,1749621045799,-188.66,0.00023834,2]
[365368594,1749621045808,-504.44,0.00023835,4]
[365368595,1749621045818,-460.0,0.00023835,4]
[365368596,1749621045828,-2794.46,0.00023835,4]
[365368597,1749621045836,-460.0,0.00023835,4]
[365368598,1749621045846,-460.0,0.00023835,4]
[365368599,1749621045855,-1128.57,0.00023835,4]
[365368600,1749621045864,-965.35,0.00023835,4]
[365368601,1749621045873,-584.39,0.00023835,4]
[365368602,1749621045882,-481.02,0.00023835,4]
[365368603,1749621045891,-460.0,0.00023835,4]
[365368605,1749621045901,-2733.38,0.00023835,4]
[365368606,1749621045912,-939.22,0.00023835,4]
[365368609,1749621045921,-790.34,0.00023835,4]
[365368610,1749621045933,-1546.53,0.00023835,4]
[365368612,1749621045942,-1073.56,0.00023835,4]
[365368614,1749621045951,-1955.74,0.00023835,4]
[365368617,1749621045962,-1089.15,0.00023835,4]
[365368619,1749621045974,-460.0,0.00023835,4]
[365368621,1749621045983,-2691.41,0.00023835,4]
[365368623,1749621045993,-2961.65,0.00023835,4]
[365368625,1749621046003,-2743.26,0.00023835,4]
[365368627,1749621046012,-516.45,0.00023835,4]
[365368629,1749621046021,-1427.72,0.00023835,4]
[365368631,1749621046030,-899.27,0.00023835,4]
[365368633,1749621046040,-1241.19,0.00023835,4]
[365368635,1749621046049,-457.58893313,0.00023835,4]
[365368637,1749621046059,-460.0,0.00023835,4]
[365368639,1749621046068,-30354.62,0.000239,2]
[365368641,1749621046078,-1000.0,0.000239,2]
[365368643,1749621046088,-600.0,0.00023904,2]
[365368645,1749621046098,-769.33,0.00023928,7]
[365368647,1749621046107,-2179.93183661,0.00023934,10]
[365368649,1749621046116,-5000.0,0.00023955,2]
[365368651,1749621046126,-1286.74,0.00023958,2]
[365368653,1749621046135,-623.0,0.00023958,2]
[365368655,1749621046145,-1257.589503,0.00023993,3]
[365368657,1749621046155,-151.0,0.00024,8]
[365368659,1749621046165,-365.0707398,0.00024,2]
[365368661,1749621046174,-730.1414796,0.00024,2]
[365368663,1749621046183,-178.0,0.00024,7]
[365368665,1749621046193,-178.0,0.00024,5]
[365368667,1749621046203,-365.0707398,0.00024,2]
[365368669,1749621046212,-365.0707398,0.00024,2]
[365368671,1749621046221,-365.0707398,0.00024,2]
[365368673,1749621046230,-365.0707398,0.00024,2]
[365368675,1749621046239,-365.0707398,0.00024,2]
[365368677,1749621046248,-365.0707398,0.00024,2]
[365368679,1749621046258,-365.0707398,0.00024,2]
[365368681,1749621046268,-365.0707398,0.00024,2]
[365368683,1749621046278,-347.3066863,0.00024,2]
[365368685,1749621046287,-160.0,0.00024,7]
[365368687,1749621046296,-229.71724145,0.00024,7]
[365368689,1749621046306,-424.19973472,0.00024,7]
[365368691,1749621046315,-835.03886221,0.00024,7]
[365368693,1749621046324,-160.0,0.00024,7]
[365368695,1749621046334,-158.35,0.00024,2]
[365368697,1749621046344,-10050.0,0.00024,30]
[365368699,1749621046353,-769.33,0.00024028,6]
[365368701,1749621046366,-587.0,0.00024054,2]
[365368703,1749621046376,-587.0,0.00024054,2]
[365368705,1749621046385,-2179.93183661,0.00024072,10]
[365368707,1749621046395,-636.0,0.00024084,2]
[365368709,1749621046404,-424.19973472,0.000241,10]
[365368711,1749621046413,-835.03886221,0.000241,10]
[365368713,1749621046423,-160.0,0.000241,10]
[365368715,1749621046433,-504.44,0.00024109,4]
[365368717,1749621046443,-460.0,0.00024109,4]
[365368719,1749621046452,-2794.46,0.00024109,4]
[365368721,1749621046462,-460.0,0.00024109,4]
[365368723,1749621046471,-460.0,0.00024109,4]
[365368725,1749621046481,-1128.57,0.00024109,4]
[365368727,1749621046490,-965.35,0.00024109,4]
[365368729,1749621046499,-584.39,0.00024109,4]
[365368731,1749621046509,-481.02,0.00024109,4]
[365368733,1749621046518,-460.0,0.00024109,4]
[365368735,1749621046527,-2733.38,0.00024109,4]
[365368737,1749621046537,-939.22,0.00024109,4]
[365368739,1749621046547,-790.34,0.00024109,4]
[365368741,1749621046557,-1546.53,0.00024109,4]
[365368743,1749621046566,-1073.56,0.00024109,4]
[365368745,1749621046575,-1955.74,0.00024109,4]
[365368747,1749621046585,-1089.15,0.00024109,4]
[365368749,1749621046595,-213.98,0.00024109,4]
[365368751,1749621046605,-2691.41,0.00024109,4]
[365368753,1749621046615,-2961.65,0.00024109,4]
[365368755,1749621046625,-2743.26,0.00024109,4]
[365368757,1749621046635,-516.45,0.00024109,4]
[365368759,1749621046644,-1427.72,0.00024109,4]
[365368762,1749621046654,-899.27,0.00024109,4]
[365368764,1749621046664,-1241.19,0.00024109,4]
[365368765,1749621046673,-460.0,0.00024109,4]
[365368768,1749621046683,-769.33,0.00024128,5]
[365368769,1749621046692,-153.0,0.00024137,2]
[365368771,1749621046701,-158.7816813,0.00024137,2]
[365368773,1749621046711,-568.4352116,0.00024137,2]
[365368776,1749621046721,-357.2019528,0.00024137,2]
[365368778,1749621046730,-601.74494822,0.00024153,2]
[365368779,1749621046739,-151.0,0.00024157,7]
[365368781,1749621046749,-6434.45288652,0.00024164,3]
[365368784,1749621046758,-969.196,0.00024166,2]
[365368785,1749621046768,-2160.0,0.00024166,2]
[365368787,1749621046777,-653.0,0.00024166,2]
[365368790,1749621046787,-229.447,0.00024166,2]
[365368792,1749621046797,-405.0,0.00024166,2]
[365368794,1749621046806,-150.34,0.00024166,2]
[365368796,1749621046816,-160.0,0.0002417,3]
[365368798,1749621046825,-229.71724145,0.0002417,3]
[365368800,1749621046835,-1210.524356,0.00024171,2]
[365368802,1749621046844,-160.0,0.0002418,10]
[365368804,1749621046853,-229.71724145,0.0002418,10]
[365368806,1749621046862,-623.0,0.00024194,2]
[365368808,1749621046871,-458.8,0.000242,7]
[365368810,1749621046882,-178.0,0.000242,7]
[365368812,1749621046891,-178.0,0.000242,4]
[365368814,1749621046900,-178.0,0.000242,9]
[365368816,1749621046910,-178.0,0.000242,9]
[365368818,1749621046919,-424.19973472,0.000242,3]
[365368820,1749621046931,-835.03886221,0.000242,3]
[365368822,1749621046944,-160.0,0.000242,3]
[365368824,1749621046954,-160.0,0.000242,3]
[365368826,1749621046964,-11186.79680739,0.000242,3]
[365368828,1749621046974,-844.64040732,0.000242,3]
[365368830,1749621046983,-213.16534259,0.000242,3]
[365368832,1749621046992,-2179.93183661,0.0002421,10]
[365368834,1749621047002,-215.0738,0.00024228,2]
[365368836,1749621047013,-769.33,0.00024228,7]
[365368838,1749621047023,-623.0,0.00024272,2]
[365368840,1749621047033,-151.0,0.000243,9]
[365368842,1749621047043,-298.323544,0.00024315,2]
[365368844,1749621047053,-769.33,0.00024328,7]
[365368846,1749621047062,-2179.93183661,0.00024348,11]
[365368848,1749621047072,-39450.0,0.0002435,7]
[365368850,1749621047081,-504.44,0.00024383,4]
[365368862,1749621047193,-460.0,0.00024383,4]
[365368864,1749621047204,-2794.46,0.00024383,4]
[365368866,1749621047213,-460.0,0.00024383,4]
[365368868,1749621047224,-460.0,0.00024383,4]
[365368870,1749621047233,-1128.57,0.00024383,4]
[365368873,1749621047245,-965.35,0.00024383,4]
[365368875,1749621047255,-584.39,0.00024383,4]
[365368877,1749621047265,-481.02,0.00024383,4]
[365368879,1749621047276,-460.0,0.00024383,4]
[365368881,1749621047286,-2733.38,0.00024383,4]
[365368883,1749621047295,-939.22,0.00024383,4]
[365368885,1749621047305,-790.34,0.00024383,4]
[365368887,1749621047314,-1546.53,0.00024383,4]
[365368889,1749621047324,-1073.56,0.00024383,4]
[365368891,1749621047335,-1955.74,0.00024383,4]
[365368893,1749621047345,-1089.15,0.00024383,4]
[365368895,1749621047355,-2691.41,0.00024383,4]
[365368897,1749621047364,-2961.65,0.00024383,4]
[365368899,1749621047373,-2743.26,0.00024383,4]
[365368901,1749621047383,-516.45,0.00024383,4]
[365368903,1749621047392,-1427.72,0.00024383,4]
[365368905,1749621047402,-899.27,0.00024383,4]
[365368907,1749621047412,-1241.19,0.00024383,4]
[365368909,1749621047421,-906.86118505,0.00024383,2]
[365368911,1749621047430,-460.0,0.00024383,4]
[365368913,1749621047439,-206382.29492701,0.00024399,2]
[365368915,1749621047449,-1185.38,0.000244,7]
[365368917,1749621047458,-1000.0,0.000244,2]
[365368919,1749621047468,-153.0,0.00024411,2]
[365368921,1749621047478,-153.0,0.00024411,2]
[365368923,1749621047487,-153.0,0.00024411,2]
[365368925,1749621047497,-153.0,0.00024411,2]
[365368927,1749621047506,-153.0,0.00024411,2]
[365368929,1749621047516,-278.3801797,0.00024411,2]
[365368931,1749621047525,-769.33,0.00024428,5]
[365368933,1749621047535,-500.0,0.00024447,9]
[365368935,1749621047545,-500.0,0.00024473,2]
[365368937,1749621047554,-500.53643659,0.00024473,2]
[365368939,1749621047563,-506.16225976,0.00024473,2]
[365368941,1749621047572,-503.96951609,0.00024473,2]
[365368943,1749621047581,-501.56200485,0.00024473,2]
[365368945,1749621047591,-500.0,0.00024473,2]
[365368947,1749621047600,-280.4839101,0.00024482,2]
[365368949,1749621047610,-214.3146005,0.00024483,2]
[365368951,1749621047619,-383450.73298154,0.00024483,7]
[365368953,1749621047628,-151.0,0.00024483,7]
[365368955,1749621047638,-151.0,0.00024483,7]
[365368957,1749621047648,-151.0,0.00024483,7]
[365368959,1749621047658,-1745.0,0.00024483,3]
[365368961,1749621047667,-1745.0,0.00024483,3]
[365368963,1749621047676,-1745.0,0.00024483,3]
[365368965,1749621047685,-1745.0,0.00024483,3]
[365368967,1749621047694,-1745.0,0.00024483,3]
[365368969,1749621047704,-1745.0,0.00024483,3]
[365368971,1749621047713,-1745.0,0.00024483,3]
[365368974,1749621047722,-171.0,0.00024483,3]
[365368975,1749621047733,-1745.0,0.00024483,3]
[365368978,1749621047743,-1745.0,0.00024483,3]
[365368980,1749621047752,-1745.0,0.00024483,3]
[365368981,1749621047761,-271.03904922,0.00024483,3]
[365368983,1749621047771,-1745.0,0.00024483,3]
[365368985,1749621047780,-1745.0,0.00024483,3]
[365368987,1749621047790,-1745.0,0.00024483,3]
[365368990,1749621047799,-155.43081847,0.00024483,3]
[365368991,1749621047809,-1745.0,0.00024483,3]
[365368994,1749621047818,-1745.0,0.00024483,3]
[365368996,1749621047827,-1745.0,0.00024483,3]
[365368997,1749621047837,-1745.0,0.00024483,3]
[365368999,1749621047847,-1745.0,0.00024483,3]
[365369002,1749621047856,-1745.0,0.00024483,3]
[365369003,1749621047865,-151.0,0.00024483,3]
[365369006,1749621047874,-152.8942424,0.00024483,3]
[365369008,1749621047884,-1745.0,0.00024483,3]
[365369009,1749621047893,-1745.0,0.00024483,3]
[365369011,1749621047904,-1745.0,0.00024483,3]
[365369014,1749621047915,-1745.0,0.00024483,3]
[365369016,1749621047925,-1030.1030757,0.00024483,3]
[365369018,1749621047941,-317.0,0.00024483,3]
[365369020,1749621047951,-317.0,0.00024483,3]
[365369022,1749621047961,-317.0,0.00024483,3]
[365369024,1749621047970,-317.0,0.00024483,3]
[365369026,1749621047981,-317.0,0.00024483,3]
[365369028,1749621047990,-317.0,0.00024483,3]
[365369030,1749621047999,-317.0,0.00024483,3]
[365369032,1749621048010,-317.0,0.00024483,3]
[365369034,1749621048020,-317.0,0.00024483,3]
[365369036,1749621048029,-317.0,0.00024483,3]
[365369038,1749621048038,-322.24757634,0.00024483,3]
[365369040,1749621048047,-501.75778069,0.00024483,9]
[365369042,1749621048056,-151.0,0.00024483,7]
[365369044,1749621048065,-152.60008,0.00024483,7]
[365369046,1749621048074,-151.0,0.00024483,7]
[365369048,1749621048083,-208.04675485,0.00024484,7]
[365369050,1749621048092,-2179.93183661,0.00024486,11]
[365369052,1749621048101,-229.71724145,0.0002449,3]
[365369054,1749621048111,-27603.44857242,0.000245,2]
[365369056,1749621048120,-25676.2148099,0.000245,2]
[365369058,1749621048129,-100765.25475038,0.000245,3]
[365369070,1749621048232,-1257.03,0.00023561,4]
[365369072,1749621048241,-4227.66958023,0.000245,3]
[365369074,1749621048252,-5781.87,0.000245,3]
[365369094,1749621048474,-460.0,0.00021095,4]
[365369096,1749621048484,-460.0,0.00021095,4]
[365369098,1749621048494,-234.14279549,0.00021999,2]
[365369107,1749621048568,-16005.23763034,0.00021999,2]
[365369109,1749621048577,-365.0707398,0.00023041,2]
[365369111,1749621048586,-8244.96734304,0.00023437,2]
[365369113,1749621048598,-4940.362645,0.00023437,2]
[365369116,1749621048610,-512.78156304,0.00023437,2]
[365369499,1749621480268,503.0,0.00024658,120]
[365369500,1749621496750,503.0,0.00024658,120]
[365369598,1749622238272,-4000.0,0.0002,2]
[365369600,1749622238282,-237.86,0.00020118,2]
[365369602,1749622238292,-264.97096159,0.00020995,2]
[365369604,1749622238307,-500.0,0.00021064,2]
[365369606,1749622238316,-475.72,0.00021076,2]
[365369608,1749622238326,-300.0,0.00021093,2]
[365369610,1749622238336,-172.502,0.00021094,2]
[365369612,1749622238345,-178.90431822,0.00021094,2]
[365369614,1749622238354,-300.0,0.00021094,2]
[365369616,1749622238364,-1200.0,0.00021094,2]
[365369618,1749622238374,-420.0,0.00021095,4]
[365369620,1749622238384,-279.63334964,0.00021095,4]
[365369622,1749622238393,-460.0,0.00021095,4]
[365369624,1749622238403,-460.0,0.00021095,4]
[365369626,1749622238412,-312.86135184,0.00021095,4]
[365369628,1749622238422,-419.52261353,0.00021095,4]
[365369630,1749622238431,-460.0,0.00021095,4]
[365369632,1749622238440,-460.0,0.00021095,4]
[365369634,1749622238449,-370.0,0.00021095,4]
[365369636,1749622238459,-440.0,0.00021095,4]
[365369638,1749622238469,-460.0,0.00021095,4]
[365369640,1749622238479,-420.0,0.00021095,4]
[365369642,1749622238489,-460.0,0.00021095,4]
[365369644,1749622238498,-210.0,0.00021095,4]
[365369646,1749622238508,-460.0,0.00021095,4]
[365369648,1749622238518,-460.0,0.00021095,4]
[365369650,1749622238527,-416.05839542,0.00021095,4]
[365369652,1749622238537,-432.02689205,0.00021095,4]
[365369654,1749622238546,-532.72453924,0.00021095,4]
[365369656,1749622238558,-460.0,0.00021095,4]
[365369658,1749622238568,-460.0,0.00021095,4]
[365369660,1749622238577,-460.0,0.00021095,4]
[365369662,1749622238586,-400.0,0.00021095,4]
[365369664,1749622238596,-460.0,0.00021095,4]
[365369666,1749622238605,-436.50323665,0.00021095,4]
[365369668,1749622238614,-154.23736188,0.00021095,4]
[365369670,1749622238624,-406.09013989,0.00021095,4]
[365369672,1749622238633,-370.0,0.00021095,4]
[365369674,1749622238643,-195.38387881,0.00021095,4]
[365369676,1749622238653,-460.0,0.00021095,4]
[365369678,1749622238663,-390.0,0.00021095,4]
[365369679,1749622238672,-460.0,0.00021095,4]
[365369680,1749622238682,-460.0,0.00021095,4]
[365369681,1749622238691,-672.32,0.00021095,4]
[365369682,1749622238701,-460.0,0.00021095,4]
[365369683,1749622238711,-739.66,0.00021095,4]
[365369684,1749622238721,-733.27,0.00021095,4]
[365369685,1749622238730,-460.0,0.00021095,4]
[365369686,1749622238739,-430.0,0.00021095,4]
[365369687,1749622238749,-413.18652311,0.00021095,4]
[365369688,1749622238758,-460.0,0.00021095,4]
[365369689,1749622238768,-1513.67,0.00021095,4]
[365369690,1749622238778,-460.0,0.00021095,4]
[365369691,1749622238787,-460.0,0.00021095,4]
[365369692,1749622238797,-460.0,0.00021095,4]
[365369693,1749622238808,-460.0,0.00021095,4]
[365369694,1749622238818,-460.0,0.00021095,4]
[365369695,1749622238828,-547.36,0.00021095,4]
[365369696,1749622238838,-460.0,0.00021095,4]
[365369697,1749622238847,-626.24,0.00021095,4]
[365369698,1749622238857,-460.0,0.00021095,4]
[365369699,1749622238866,-460.0,0.00021095,4]
[365369700,1749622238876,-460.0,0.00021095,4]
[365369701,1749622238885,-1824.46,0.00021095,4]
[365369702,1749622238894,-460.0,0.00021095,4]
[365369703,1749622238904,-460.0,0.00021095,4]
[365369704,1749622238913,-487.3,0.00021095,4]
[365369705,1749622238923,-547.88,0.00021095,4]
[365369706,1749622238932,-1140.85,0.00021095,4]
[365369708,1749622238941,-902.14,0.00021095,4]
[365369710,1749622238951,-635.33,0.00021095,4]
[365369712,1749622238960,-457.58893313,0.00021095,4]
[365369714,1749622238971,-460.0,0.00021095,4]
[365369716,1749622238980,-460.0,0.00021095,4]
[365369718,1749622238990,-460.0,0.00021095,4]
[365369720,1749622238999,-460.0,0.00021095,4]
[365369722,1749622239009,-1792.05,0.00021095,4]
[365369724,1749622239019,-460.0,0.00021095,4]
[365369743,1749622239188,-1640.75,0.00021095,4]
[365369745,1749622239200,-1600.24,0.00021095,4]
[365369747,1749622239209,-832.83,0.00021095,4]
[365369749,1749622239218,-460.0,0.00021095,4]
[365369751,1749622239227,-460.0,0.00021095,4]
[365369753,1749622239236,-524.58,0.00021095,4]
[365369755,1749622239246,-460.0,0.00021095,4]
[365369757,1749622239256,-460.0,0.00021095,4]
[365369759,1749622239265,-378.49876478,0.00021095,4]
[365369761,1749622239274,-230.0,0.00021369,4]
[365369763,1749622239284,-350.82600538,0.00021369,4]
[365369765,1749622239294,-350.0,0.00021369,4]
[365369767,1749622239307,-460.0,0.00021369,4]
[365369768,1749622239317,-437.18884101,0.00021369,4]
[365369769,1749622239326,-409.92706772,0.00021369,4]
[365369770,1749622239336,-460.0,0.00021369,4]
[365369771,1749622239347,-460.0,0.00021369,4]
[365369772,1749622239356,-411.55892203,0.00021369,4]
[365369774,1749622239365,-460.0,0.00021369,4]
[365369777,1749622239377,-672.32,0.00021369,4]
[365369779,1749622239387,-460.0,0.00021369,4]
[365369780,1749622239396,-739.66,0.00021369,4]
[365369781,1749622239406,-733.27,0.00021369,4]
[365369782,1749622239415,-460.0,0.00021369,4]
[365369783,1749622239424,-1513.67,0.00021369,4]
[365369784,1749622239434,-460.0,0.00021369,4]
[365369785,1749622239443,-460.0,0.00021369,4]
[365369786,1749622239452,-547.36,0.00021369,4]
[365369787,1749622239462,-460.0,0.00021369,4]
[365369788,1749622239471,-626.24,0.00021369,4]
[365369789,1749622239479,-1824.46,0.00021369,4]
[365369790,1749622239488,-460.0,0.00021369,4]
[365369791,1749622239497,-487.3,0.00021369,4]
[365369792,1749622239507,-547.88,0.00021369,4]
[365369793,1749622239517,-1140.85,0.00021369,4]
[365369794,1749622239526,-902.14,0.00021369,4]
[365369795,1749622239536,-635.33,0.00021369,4]
[365369796,1749622239545,-460.0,0.00021369,4]
[365369797,1749622239555,-460.0,0.00021369,4]
[365369798,1749622239564,-460.0,0.00021369,4]
[365369799,1749622239574,-1792.05,0.00021369,4]
[365369800,1749622239583,-460.0,0.00021369,4]
[365369801,1749622239592,-1640.75,0.00021369,4]
[365369802,1749622239601,-1600.24,0.00021369,4]
[365369803,1749622239611,-832.83,0.00021369,4]
[365369804,1749622239620,-460.0,0.00021369,4]
[365369805,1749622239630,-460.0,0.00021369,4]
[365369806,1749622239639,-524.58,0.00021369,4]
[365369807,1749622239649,-264.97096154,0.00021549,2]
[365369808,1749622239658,-403.39578741,0.00021642,2]
[365369809,1749622239668,-500.0,0.00021642,2]
[365369810,1749622239677,-500.0,0.00021642,2]
[365369811,1749622239687,-500.0,0.00021642,2]
[365369812,1749622239696,-170.0,0.00021642,2]
[365369813,1749622239705,-500.0,0.00021642,2]
[365369814,1749622239715,-500.0,0.00021642,2]
[365369815,1749622239724,-641.66293194,0.00021642,2]
[365369816,1749622239733,-508.69731892,0.00021642,2]
[365369817,1749622239743,-500.0,0.00021642,2]
[365369818,1749622239751,-500.0,0.00021642,2]
[365369819,1749622239761,-306.87710466,0.00021642,2]
[365369820,1749622239770,-460.0,0.00021643,4]
[365369821,1749622239779,-672.32,0.00021643,4]
[365369822,1749622239789,-460.0,0.00021643,4]
[365369823,1749622239798,-739.66,0.00021643,4]
[365369824,1749622239808,-733.27,0.00021643,4]
[365369825,1749622239818,-460.0,0.00021643,4]
[365369826,1749622239827,-1513.67,0.00021643,4]
[365369827,1749622239837,-460.0,0.00021643,4]
[365369828,1749622239847,-460.0,0.00021643,4]
[365369829,1749622239856,-547.36,0.00021643,4]
[365369830,1749622239865,-460.0,0.00021643,4]
[365369831,1749622239875,-626.24,0.00021643,4]
[365369832,1749622239885,-1824.46,0.00021643,4]
[365369833,1749622239895,-460.0,0.00021643,4]
[365369834,1749622239904,-487.3,0.00021643,4]
[365369835,1749622239913,-547.88,0.00021643,4]
[365369837,1749622239923,-1140.85,0.00021643,4]
[365369839,1749622239932,-902.14,0.00021643,4]
[365369841,1749622239942,-635.33,0.00021643,4]
[365369843,1749622239951,-460.0,0.00021643,4]
[365369845,1749622239960,-460.0,0.00021643,4]
[365369847,1749622239970,-213.98,0.00021643,4]
[365369849,1749622239979,-1792.05,0.00021643,4]
[365369851,1749622239988,-460.0,0.00021643,4]
[365369854,1749622239998,-1640.75,0.00021643,4]
[365369856,1749622240011,-1600.24,0.00021643,4]
[365369857,1749622240020,-832.83,0.00021643,4]
[365369859,1749622240030,-460.0,0.00021643,4]
[365369861,1749622240039,-200.0,0.00021643,4]
[365369863,1749622240049,-524.58,0.00021643,4]
[365369865,1749622240066,-9219.5017994,0.00021665,2]
[365369867,1749622240081,-630.46691591,0.000219,6]
[365369869,1749622240090,-460.0,0.00021917,4]
[365369871,1749622240100,-672.32,0.00021917,4]
[365369873,1749622240109,-460.0,0.00021917,4]
[365369875,1749622240118,-739.66,0.00021917,4]
[365369877,1749622240128,-733.27,0.00021917,4]